bitfinex/quotes_ETHUSD_20250511
["timestamp","ask_amount","ask_price","bid_price","bid_amount"]
[1746994590082,3.99354747,2504.1,2503.5,8.7991]
[1746994590287,3.99354747,2504.1,2503.7,2.776]
[1746994591791,3.99375462,2504.0,2503.5,8.7991]
[1746994591977,3.99345074,2504.1,2503.4,6.36323886]
[1746994592179,3.99345074,2504.1,2503.5,2.775]
[1746994592491,3.9940299,2503.8,2503.4,3.58623886]
[1746994592668,3.9940299,2503.8,2503.5,8.0]
[1746994594470,0.8254,2503.7,2503.5,8.0]
[1746994594671,3.9940299,2503.8,2503.5,8.0]
[1746994595504,3.99440782,2503.5,2503.4,3.58623886]
[1746994595685,9.55898785,2503.5,2503.4,3.58623886]
[1746994596010,10.10898785,2503.5,2503.4,3.58623886]
[1746994596196,10.10898785,2503.5,2503.1,0.05]
[1746994596197,4.82028654,2503.2,2503.1,0.05]
[1746994596393,8.80030014,2503.2,2503.1,0.05]
[1746994596726,4.82188309,2502.2,2502.1,0.05]
[1746994597074,0.8254,2502.7,2502.1,0.05]
[1746994597409,3.99603656,2502.5,2502.1,0.05]
[1746994597720,0.8254,2502.7,2502.1,0.05]
[1746994597883,3.99625296,2502.4,2502.1,1.21525]
[1746994598093,3.99610174,2502.5,2502.1,1.21525]
[1746994598302,3.99616926,2502.4,2502.1,1.21525]
[1746994598613,3.99613621,2502.5,2502.1,0.05]
[1746994598913,3.99648309,2502.2,2502.1,0.05]
[1746994599614,4.82188309,2502.2,2502.1,0.05]
[1746994601236,3.99648309,2502.2,2502.1,0.05]
[1746994603306,1.96218003,2502.5,2502.1,0.05]
[1746994603627,3.99648309,2502.2,2502.1,0.05]
[1746994614022,1.96218003,2502.8,2502.1,0.05]
[1746994614225,3.99609667,2502.5,2502.1,0.05]
[1746994615121,3.99618779,2502.4,2502.1,0.05]
[1746994615766,3.99609667,2502.5,2502.1,0.05]
[1746994615935,3.99609667,2502.5,2502.2,0.8258]
[1746994616136,3.99617429,2502.4,2502.2,0.8258]
[1746994616337,3.99648309,2502.2,2502.1,0.05]
[1746994622489,1.96218003,2502.5,2502.1,0.05]
[1746994622690,3.99648309,2502.2,2502.1,0.05]
[1746994623668,3.99639795,2502.3,2502.1,0.05]
[1746994625459,3.99648309,2502.2,2502.1,0.05]
[1746994626503,0.8106,2502.7,2502.1,0.05]
[1746994626504,3.99624329,2502.4,2502.2,0.811]
[1746994626818,3.99648309,2502.2,2502.1,0.05]
[1746994626994,3.99648309,2502.2,2502.1,0.9361]
[1746994627907,3.99648309,2502.2,2502.1,0.05]
[1746994632536,4.77958309,2502.2,2502.1,0.05]
[1746994632721,6.74176312,2502.2,2502.1,0.05]
[1746994632928,7.51328971,2502.2,2502.1,0.05]
[1746994633114,15.51328971,2502.2,2502.1,0.05]
[1746994634242,6.96328971,2502.2,2502.1,0.05]
[1746994634428,4.21800968,2502.2,2502.1,0.05]
[1746994634616,3.99648309,2502.2,2502.1,0.05]
[1746994638045,2.78878003,2502.6,2502.2,3.996483]
[1746994638046,3.99600399,2502.5,2502.2,3.996483]
[1746994638250,3.99585667,2502.6,2502.3,0.4046483]
[1746994638449,5.95726896,2503.1,2502.2,0.7828]
[1746994638450,3.99520575,2503.0,2502.2,0.7828]
[1746994638751,3.99597218,2502.6,2502.2,0.7828]
[1746994639114,3.99605169,2502.5,2502.2,0.7828]
[1746994640517,3.9961674,2502.4,2502.2,3.5558]
[1746994640866,3.99562005,2502.8,2502.3,22.260219]
[1746994641017,3.99572584,2502.7,2502.5,8.0]
[1746994641217,3.99610775,2502.5,2502.3,8.0]
[1746994641457,3.99592051,2502.6,2502.3,8.0]
[1746994642260,3.99632338,2502.3,2502.1,0.05]
[1746994644059,3.99648309,2502.2,2502.1,0.05]
[1746994644849,1.96218003,2503.1,2502.2,3.996483]
[1746994645054,1.96218003,2503.1,2502.1,8.8082]
[1746994645055,3.99603218,2502.5,2502.1,8.8082]
[1746994645241,3.99619472,2502.4,2502.2,1.15812]
[1746994645441,3.99648309,2502.2,2502.1,8.8082]
[1746994645976,3.99584432,2502.6,2502.1,8.8082]
[1746994646142,3.99608493,2502.5,2502.1,8.8082]
[1746994646347,3.99608493,2502.5,2502.1,0.8082]
[1746994646547,3.99608493,2502.5,2502.1,8.8082]
[1746994646763,0.817,2502.9,2502.1,9.96632]
[1746994646934,1.96218003,2503.1,2502.1,10.00628653]
[1746994646935,3.99586588,2502.6,2502.1,10.00628653]
[1746994647135,3.99554314,2502.8,2502.1,10.00628653]
[1746994647136,3.99580344,2502.7,2502.1,9.96632]
[1746994647337,1.96218003,2503.5,2502.2,0.79816064]
[1746994647639,3.9951364,2503.1,2502.9,0.7582]
[1746994648437,3.99520575,2503.0,2502.9,0.7582]
[1746994648937,3.99552375,2502.9,2502.4,8.0]
[1746994649137,3.99552375,2502.9,2502.5,0.7771]
[1746994649338,3.99561251,2502.8,2502.5,0.7771]
[1746994649582,3.99561251,2502.8,2502.7,8.0]
[1746994649758,3.99561251,2502.8,2502.6,0.62202756]
[1746994649979,3.99568466,2502.7,2502.6,0.62202756]
[1746994650262,3.99504614,2503.1,2502.3,2.767]
[1746994650453,3.99594398,2502.6,2502.3,2.767]
[1746994650782,3.99594398,2502.6,2502.4,8.0]
[1746994651139,1.96218003,2503.1,2502.4,8.0]
[1746994651364,3.99561063,2502.8,2502.4,8.0]
[1746994651567,3.99561063,2502.8,2502.5,1.0767]
[1746994652981,3.99522794,2503.0,2502.6,0.7771]
[1746994653178,1.96218003,2503.1,2502.6,0.81705518]
[1746994653401,1.96218003,2503.1,2502.6,0.7771]
[1746994654405,3.99394568,2503.8,2502.6,0.7771]
[1746994654406,0.8307,2503.8,2502.7,0.03995389]
[1746994654582,0.8307,2503.8,2502.8,0.7782]
[1746994654583,3.99408874,2503.7,2502.8,0.7782]
[1746994654964,3.99408874,2503.7,2502.9,0.35831539]
[1746994655461,3.99470531,2503.4,2503.0,8.0]
[1746994655673,2.765,2504.2,2503.1,0.7782]
[1746994656075,3.99345074,2504.1,2503.1,0.7782]
[1746994656291,3.99424204,2503.7,2503.1,0.81814526]
[1746994656488,3.99427442,2503.6,2503.2,0.88181453]
[1746994656691,2.79288003,2504.3,2503.7,8.0]
[1746994656886,3.99404965,2503.8,2503.3,0.7782]
[1746994657105,3.99404025,2503.8,2503.3,0.7782]
[1746994657312,3.99330615,2504.2,2503.3,0.7782]
[1746994657481,3.99403979,2503.8,2503.3,0.7782]
[1746994658395,3.99408874,2503.7,2503.3,0.7782]
[1746994658579,11.0207,2504.8,2503.7,2.552328]
[1746994658786,11.0207,2504.8,2503.3,0.03994209]
[1746994658787,5.95506012,2504.5,2503.8,0.7782]
[1746994659973,3.99376971,2503.9,2503.8,0.7782]
[1746994660323,3.9800136,2504.1,2503.2,1.63831453]
[1746994660617,3.99520575,2503.0,2502.9,0.7565]
[1746994661692,3.99376971,2503.9,2502.9,40.94855]
[1746994661869,3.99520575,2503.0,2502.9,0.7565]
[1746994662473,3.99513142,2503.1,2502.6,0.7565]
[1746994663389,3.9956808,2502.8,2502.6,0.7565]
[1746994663588,3.99265259,2502.8,2502.6,0.7565]
[1746994665996,5.48728003,2503.4,2502.6,0.7565]
[1746994666210,3.99503,2503.2,2502.6,0.79645662]
[1746994666389,3.99503,2503.2,2502.6,0.7565]
[1746994666609,3.99509897,2503.1,2502.6,0.7565]
[1746994667150,3.99489007,2503.2,2503.1,3.995098]
[1746994667298,3.99480471,2503.3,2503.1,8.0]
[1746994667737,1.96218003,2503.4,2502.8,0.7943]
[1746994667910,1.96218003,2503.4,2502.9,0.03995057]
[1746994668232,1.96218003,2503.4,2503.0,8.7943]
[1746994668435,1.96218003,2503.4,2503.2,0.7943]
[1746994668640,1.96218003,2503.4,2503.3,34.529648]
[1746994668836,1.96218003,2503.4,2503.3,35.13220238]
[1746994669044,3.99414699,2503.7,2503.4,8.0]
[1746994669205,3.99414699,2503.7,2503.3,3.53638938]
[1746994669404,3.99414699,2503.7,2503.3,0.0399432]
[1746994670157,3.99414699,2503.7,2503.4,0.7943]
[1746994671425,3.99408874,2503.7,2503.4,0.7943]
[1746994675434,3.99432444,2503.6,2503.4,0.7943]
[1746994677715,3.99396631,2503.8,2503.4,0.7943]
[1746994677922,3.99415912,2503.7,2503.4,0.7943]
[1746994679253,3.99343525,2504.2,2504.1,19.981609]
[1746994679461,3.99343525,2504.2,2504.1,8.0]
[1746994679688,3.99317221,2504.3,2504.1,8.0]
[1746994679963,5.522,2504.7,2504.1,8.0]
[1746994679964,0.8308,2505.2,2504.2,3.5466]
[1746994680257,3.99294088,2504.5,2504.3,8.0]
[1746994680458,3.9927142,2504.6,2504.3,8.0]
[1746994680657,3.99185661,2505.1,2504.3,8.0]
[1746994680878,3.99289506,2504.5,2503.7,0.55]
[1746994681162,3.99297089,2504.5,2504.1,8.7856]
[1746994681364,3.99329127,2504.2,2504.1,8.0]
[1746994681548,3.99401655,2503.8,2503.5,0.7856]
[1746994681757,3.99422448,2503.7,2503.5,2.57756]
[1746994681954,3.99424828,2503.6,2503.5,10.57756]
[1746994682126,3.99472696,2503.3,2503.2,0.7856]
[1746994682466,4.82507438,2503.6,2503.1,8.0]
[1746994682662,3.99520575,2503.0,2502.9,0.7856]
[1746994683072,3.99520575,2503.0,2502.9,3.485526]
[1746994683233,3.99520575,2503.0,2502.9,11.485526]
[1746994683433,3.99520575,2503.0,2502.9,3.485526]
[1746994683660,3.99512806,2503.1,2502.9,3.485526]
[1746994683864,3.99512806,2503.1,2502.9,1.4102526]
[1746994684070,3.99512806,2503.1,2502.9,9.4102526]
[1746994684279,3.99512806,2503.1,2503.0,2.461625]
[1746994684581,3.99476488,2503.3,2502.8,2.761]
[1746994684582,3.99536537,2502.9,2502.8,2.761]
[1746994684873,3.99536537,2502.9,2502.8,10.761]
[1746994685426,3.99536537,2502.9,2502.8,12.900882]
[1746994685995,3.99536537,2502.9,2502.8,10.761]
[1746994686332,3.99536537,2502.9,2502.8,12.900882]
[1746994686668,3.99454331,2503.5,2502.9,8.0]
[1746994686885,3.99450424,2503.5,2503.0,0.8202]
[1746994687281,3.99461499,2503.4,2503.0,0.8202]
[1746994687996,3.99447051,2503.5,2503.0,0.8202]
[1746994689089,3.99458306,2503.4,2503.0,0.8202]
[1746994691028,4.77189921,2503.9,2503.0,1.18231471]
[1746994691029,0.778,2503.9,2503.0,1.18231471]
[1746994691168,3.99571922,2502.7,2502.4,0.8202]
[1746994691561,3.99571922,2502.7,2502.4,8.8202]
[1746994691758,3.99564959,2502.8,2502.4,8.8202]
[1746994691986,3.99545768,2502.9,2502.4,8.8202]
[1746994692189,3.99619803,2502.4,2502.2,0.8202]
[1746994692377,3.99556503,2502.8,2502.4,3.996198]
[1746994692573,3.99568466,2502.7,2502.4,1.2816398]
[1746994692777,3.99556503,2502.8,2502.4,1.2816398]
[1746994692974,3.99556503,2502.8,2502.2,8.8202]
[1746994693175,3.99648309,2502.2,2502.1,0.05]
[1746994695668,3.99648309,2502.2,2502.1,10.489409]
[1746994695862,3.99648309,2502.2,2502.1,8.05]
[1746994697109,0.7731,2502.9,2502.2,8.0]
[1746994697295,3.99576769,2502.7,2502.3,1.6834]
[1746994697480,3.99542993,2502.9,2502.5,8.0]
[1746994697676,3.99542993,2502.9,2502.6,0.784]
[1746994698465,3.99583239,2502.7,2502.4,0.784]
[1746994698621,0.7731,2503.4,2502.6,8.0]
[1746994698908,3.99516415,2503.1,2502.6,8.0]
[1746994699207,3.99516415,2503.1,2502.7,1.0759]
[1746994701626,3.99522623,2503.0,2502.7,1.0759]
[1746994701807,3.9953959,2502.9,2502.7,1.0759]
[1746994702430,3.99523592,2503.0,2502.7,1.0759]
[1746994703005,0.7731,2503.4,2502.7,1.0759]
[1746994703201,0.7654,2503.7,2502.8,1.75364205]
[1746994703454,3.99468142,2503.4,2502.8,1.75364205]
[1746994703640,3.9943561,2503.6,2502.8,4.51564205]
[1746994703823,3.99427241,2503.6,2502.9,8.8061]
[1746994704022,3.99427241,2503.6,2503.0,0.03994719]
[1746994704818,3.99427241,2503.6,2503.1,0.805]
[1746994705109,3.99427241,2503.6,2503.2,8.0]
[1746994705665,0.7654,2503.9,2503.2,8.0]
[1746994705826,3.99472696,2503.3,2502.3,0.805]
[1746994706008,3.99568466,2502.7,2502.6,2.762]
[1746994706215,3.99568466,2502.7,2502.4,1.1005]
[1746994706519,3.99601324,2502.5,2502.3,0.805]
[1746994707062,0.7917,2502.9,2502.3,0.805]
[1746994707063,3.99552501,2502.8,2502.4,2.288174]
[1746994707239,3.99578125,2502.7,2502.3,0.805]
[1746994707415,3.99585199,2502.6,2502.3,0.805]
[1746994709131,3.99607797,2502.5,2502.2,8.0]
[1746994709337,3.99579194,2502.7,2502.5,2.212646]
[1746994709538,3.99579194,2502.7,2502.2,9.43676]
[1746994710346,3.99616168,2502.5,2502.2,9.43676]
[1746994710552,3.99625893,2502.4,2502.2,1.43676]
[1746994710749,0.7905,2502.5,2502.1,0.05]
[1746994710955,3.99648309,2502.2,2502.1,0.05]
[1746994711519,4.78698309,2502.2,2502.1,0.05]
[1746994711818,2.75268003,2502.6,2502.1,3.850902]
[1746994712050,2.75268003,2502.6,2502.1,0.05]
[1746994712858,3.99625546,2502.4,2502.1,0.05]
[1746994713240,3.99643392,2502.3,2502.1,0.05]
[1746994713442,3.99643025,2502.3,2502.1,0.05]
[1746994713655,3.99635323,2502.3,2502.1,0.05]
[1746994714357,2.75268003,2502.6,2502.1,0.05]
[1746994714536,1.96218003,2502.6,2502.1,8.8647]
[1746994714737,1.96218003,2502.6,2502.1,10.02687]
[1746994714933,0.8203,2503.0,2502.1,10.02687]
[1746994714934,0.8203,2503.0,2502.2,0.0399642]
[1746994715164,0.8203,2503.0,2502.3,8.8147]
[1746994715165,3.99550657,2502.9,2502.3,8.8147]
[1746994715373,3.99554586,2502.8,2502.3,8.8147]
[1746994715544,3.99577866,2502.7,2502.3,8.8147]
[1746994715745,3.99554586,2502.8,2502.3,8.8147]
[1746994715746,3.99584465,2502.6,2502.4,1.15707]
[1746994715947,3.99576809,2502.7,2502.4,1.15707]
[1746994716149,3.99560715,2502.8,2502.4,1.15707]
[1746994717169,3.99570999,2502.7,2502.4,1.15707]
[1746994717852,3.9960984,2502.5,2502.1,9.21217]
[1746994718174,3.9960984,2502.5,2502.2,8.0]
[1746994718671,3.9960984,2502.5,2502.2,7.99697178]
[1746994719176,3.9959281,2502.6,2502.2,7.99697178]
[1746994719676,4.81572653,2502.9,2502.6,3.995928]
[1746994719860,1.96218003,2503.1,2502.6,0.8147]
[1746994720060,1.96218003,2503.1,2502.6,3.5717]
[1746994720382,5.95724406,2503.1,2502.6,3.5717]
[1746994720532,5.95724406,2503.1,2502.7,8.0]
[1746994721078,3.99520575,2503.0,2502.7,8.0]
[1746994721373,4.81489765,2503.4,2502.7,8.0]
[1746994721374,0.8203,2503.4,2502.7,9.19712569]
[1746994721571,4.81492126,2503.4,2502.7,9.15717]
[1746994721774,4.81492126,2503.4,2502.7,11.91217]
[1746994722338,3.99472696,2503.3,2502.7,11.91217]
[1746994722579,3.99488864,2503.2,2502.7,11.91217]
[1746994722875,4.81492126,2503.4,2502.8,9.548387]
[1746994722876,3.99504761,2503.1,2502.8,9.548387]
[1746994723081,3.99505148,2503.1,2502.8,1.548387]
[1746994723445,3.99505148,2503.1,2502.8,9.548387]
[1746994723644,3.99491748,2503.2,2502.8,9.548387]
[1746994724361,3.99491748,2503.2,2502.9,1.2303387]
[1746994724559,0.8093,2503.6,2503.0,0.8326]
[1746994724765,3.99450163,2503.5,2503.0,0.87254757]
[1746994725682,3.99427361,2503.6,2503.0,0.87254757]
[1746994725886,3.99427361,2503.6,2503.5,8.0]
[1746994729048,3.99411735,2503.7,2503.6,8.0]
[1746994729255,3.99433351,2503.6,2503.3,8.0]
[1746994729601,3.99442787,2503.5,2503.3,9.0757]
[1746994729790,4.80307917,2503.9,2503.3,8.0]
[1746994729958,3.99456033,2503.5,2503.3,8.0]
[1746994731995,4.8031873,2503.9,2503.3,8.0]
[1746994732168,0.7918,2504.1,2503.4,0.75]
[1746994732373,0.7918,2504.1,2503.5,0.87899455]
[1746994733081,3.99377125,2503.9,2503.5,0.87899455]
[1746994734089,3.99384358,2503.9,2503.5,0.87899455]
[1746994734404,3.99394487,2503.8,2503.5,0.87899455]
[1746994735889,3.99339399,2504.2,2503.8,2.413962]
[1746994736067,3.99339399,2504.2,2503.5,8.87899455]
[1746994736068,3.99352116,2504.1,2503.5,0.87899455]
[1746994736269,3.99352116,2504.1,2503.6,0.96289946]
[1746994736891,3.99361814,2504.0,2503.6,0.96289946]
[1746994737090,3.99329127,2504.2,2503.4,0.75]
[1746994737276,3.99385766,2503.9,2503.4,0.75]
[1746994737478,3.99329127,2504.2,2503.4,0.75]
[1746994737905,3.99416375,2503.7,2503.4,0.75]
[1746994738073,3.99416375,2503.7,2503.6,8.0]
[1746994738574,3.99416375,2503.7,2503.4,0.75]
[1746994738792,3.99416375,2503.7,2503.6,8.0]
[1746994738984,3.99416375,2503.7,2503.6,2.226855]
[1746994739703,3.9936865,2504.0,2503.6,2.226855]
[1746994739892,3.9938528,2503.9,2503.4,0.75]
[1746994740100,3.99395394,2503.8,2503.4,0.75]
[1746994741809,0.8055,2503.6,2502.7,0.8123]
[1746994742177,3.99519812,2503.1,2502.7,8.8123]
[1746994742372,3.99519812,2503.1,2502.7,11.40613]
[1746994742686,1.96218003,2503.8,2503.5,7.989605]
[1746994742891,1.96218003,2503.8,2503.6,24.240672]
[1746994743099,3.99345074,2504.1,2503.8,8.0]
[1746994743409,3.99345074,2504.1,2503.6,8.0]
[1746994743714,3.99361209,2504.0,2503.6,8.0]
[1746994743918,3.99361209,2504.0,2503.8,8.0]
[1746994744088,3.99376971,2503.9,2503.6,8.0]
[1746994745578,3.99407884,2503.8,2503.6,8.0]
[1746994745778,3.99376971,2503.9,2503.2,2.752]
[1746994746021,3.99450332,2503.5,2503.3,8.0]
[1746994746978,0.7716,2503.5,2502.8,0.7971]
[1746994747250,3.9952024,2503.1,2502.9,2.752]
[1746994747402,3.9952024,2503.1,2503.0,8.0]
[1746994748424,3.99495173,2503.2,2503.0,8.0]
[1746994749925,3.99480377,2503.3,2503.0,8.0]
[1746994751304,3.99490914,2503.2,2503.0,8.0]
[1746994751826,0.7728,2503.1,2502.3,2.752]
[1746994752002,0.7728,2503.1,2502.4,8.0]
[1746994752003,3.99578653,2502.7,2502.4,8.0]
[1746994752200,3.99561105,2502.8,2502.6,8.0]
[1746994752388,0.7728,2503.1,2502.9,8.0]
[1746994752389,3.99510721,2503.1,2502.9,8.0]
[1746994752589,3.99510721,2503.1,2502.7,0.8076]
[1746994753225,3.99496129,2503.2,2502.7,0.8076]
[1746994753814,3.99512273,2503.1,2502.7,0.8076]
[1746994754853,3.99520773,2503.0,2502.7,0.8076]
[1746994757344,3.99538058,2502.9,2502.6,1.7032879]
[1746994757849,0.8037,2503.3,2502.4,8.0]
[1746994757850,3.99488654,2503.2,2502.4,8.0]
[1746994758018,3.99488654,2503.2,2502.3,3.5622]
[1746994758217,3.99546111,2502.9,2502.4,8.0]
[1746994758716,3.99528393,2503.0,2502.4,8.0]
[1746994758921,3.99537623,2502.9,2502.4,8.0]
[1746994759124,4.74823684,2502.8,2502.4,9.15622]
[1746994759330,4.74823684,2502.8,2502.6,8.0]
[1746994759533,3.99568466,2502.7,2502.2,8.0]
[1746994760548,4.74830474,2502.8,2502.2,8.0]
[1746994760749,0.7527,2502.8,2502.3,0.03995979]
[1746994760955,3.99530229,2503.0,2502.4,0.7751]
[1746994761141,4.74781506,2503.1,2502.4,0.7751]
[1746994761313,3.99521668,2503.0,2502.4,0.7751]
[1746994762110,3.99475696,2503.3,2502.5,0.03995643]
[1746994762324,3.99489184,2503.2,2502.6,8.7751]
[1746994762527,3.99489184,2503.2,2502.8,8.0]
[1746994763264,3.99477231,2503.3,2502.8,8.0]
[1746994764032,3.99477231,2503.3,2502.8,8.03995291]
[1746994765042,3.99477231,2503.3,2502.8,8.0]
[1746994765444,3.9948995,2503.2,2502.8,8.0]
[1746994766084,3.99504614,2503.1,2502.8,8.0]
[1746994766275,3.99476871,2503.3,2502.8,8.0]
[1746994766276,3.99495711,2503.2,2503.0,8.0]
[1746994766436,3.99495711,2503.2,2502.8,8.0]
[1746994769270,3.99506984,2503.1,2502.8,8.0]
[1746994769574,3.99552501,2502.8,2502.7,2.753]
[1746994769874,4.77439013,2503.1,2502.9,8.0]
[1746994770079,4.77439013,2503.1,2502.8,8.0]
[1746994770467,3.99497666,2503.2,2502.8,8.0]
[1746994770681,0.7793,2503.5,2503.0,8.0]
[1746994770885,4.77371353,2503.5,2502.8,9.8998]
[1746994771085,5.95648746,2503.6,2502.8,9.93975073]
[1746994771268,3.99442646,2503.5,2502.9,0.8245]
[1746994771470,3.99442646,2503.5,2503.0,1.03392045]
[1746994772375,3.99442646,2503.5,2503.0,0.99397507]
[1746994773169,3.99464662,2503.4,2503.0,0.99397507]
[1746994775603,3.99509509,2503.1,2502.8,8.0]
[1746994775769,3.99541915,2502.9,2502.7,2.747]
[1746994775964,3.99541915,2502.9,2502.8,8.0]
[1746994776164,3.99541915,2502.9,2502.7,2.747]
[1746994776165,3.99552501,2502.8,2502.7,2.747]
[1746994776500,3.99552501,2502.8,2502.7,10.747]
[1746994778515,0.7765,2504.8,2504.1,8.0]
[1746994778666,0.22041994,2504.7,2504.1,9.42998325]
[1746994778871,0.22041994,2504.7,2504.2,1.42998325]
[1746994779309,3.99265351,2504.6,2504.2,1.42998325]
[1746994779607,3.99265351,2504.6,2503.9,8.0]
[1746994779608,3.99269923,2504.6,2503.9,8.0]
[1746994780572,3.99265793,2504.6,2503.9,8.0]
[1746994782401,4.76931536,2504.5,2503.9,8.0]
[1746994782797,0.7765,2504.5,2503.9,8.0]
[1746994783919,0.7765,2504.5,2503.9,9.42922]
[1746994785735,0.8323,2504.8,2504.1,0.7695]
[1746994786719,6.7337144,2505.1,2504.1,0.7695]
[1746994787111,3.99201641,2505.0,2504.1,0.7695]
[1746994787437,6.73374235,2505.1,2504.1,0.7695]
[1746994787641,1.96218003,2505.3,2504.2,0.03992917]
[1746994787807,0.7536,2505.3,2504.4,8.0]
[1746994788004,0.05,2505.4,2504.6,8.824]
[1746994788207,4.04138121,2505.4,2504.6,8.824]
[1746994788748,0.05,2505.4,2504.7,0.03992213]
[1746994788910,0.05,2505.4,2504.7,1.20091434]
[1746994792851,0.05,2505.4,2504.8,8.0]
[1746994793229,0.05,2505.4,2504.9,0.824]
[1746994793615,0.05,2505.4,2505.1,8.0]
[1746994793843,0.05,2505.4,2505.3,8.0]
[1746994794042,0.05,2505.4,2505.3,27.498325]
[1746994794407,0.05,2505.4,2505.3,16.495396]
[1746994794611,0.05,2505.4,2505.3,13.197303]
[1746994795653,0.05,2505.4,2505.1,2.745]
[1746994795825,0.05,2505.4,2505.2,0.2745]
[1746994796439,4.04146064,2505.4,2504.9,3.569]
[1746994796612,0.05,2505.4,2505.0,8.0]
[1746994797052,4.04141927,2505.4,2505.0,8.0]
[1746994797435,0.05,2505.4,2505.0,8.0]
[1746994797643,4.04139795,2505.4,2505.0,8.0]
[1746994797838,0.05,2505.4,2505.1,0.7634]
[1746994798053,0.05,2505.4,2505.3,8.0]
[1746994798347,0.05,2505.4,2505.3,14.524871]
[1746994798728,0.05,2505.4,2505.0,8.0]
[1746994798919,4.04139197,2505.4,2505.0,8.0]
[1746994799477,0.05,2505.4,2505.0,8.0]
[1746994800665,0.8073,2505.3,2505.0,8.0]
[1746994800848,3.99185661,2505.1,2505.0,8.0]
[1746994801648,3.99178449,2505.2,2505.0,8.0]
[1746994801813,4.79887919,2505.3,2505.0,8.0]
[1746994801814,0.8073,2505.3,2505.0,8.0]
[1746994802010,0.05,2505.4,2505.2,8.0]
[1746994802210,4.04144515,2505.4,2505.1,1.0745]
[1746994802453,3.99163391,2505.3,2504.9,8.0]
[1746994802918,0.05,2505.4,2504.9,8.0]
[1746994803119,0.05,2505.4,2504.9,8.7936]
[1746994807552,0.05,2505.4,2505.1,8.0]
[1746994807755,0.05,2505.4,2505.3,8.0]
[1746994808073,0.05,2505.4,2505.3,20.6985974]
[1746994808239,0.05,2505.4,2505.3,11.5759634]
[1746994808440,0.05,2505.4,2505.3,8.7548]
[1746994808673,0.05,2505.4,2505.3,37.15502916]
[1746994808830,0.05,2505.4,2505.3,37.115119]
[1746994809168,0.05,2505.4,2505.3,16.865847]
[1746994810552,0.05,2505.4,2505.3,13.357234]
[1746994811066,0.05,2505.4,2505.3,14.95171553]
[1746994811832,0.05,2505.4,2505.3,13.357234]
[1746994812031,0.05,2505.4,2505.3,8.0]
[1746994812840,0.05,2505.4,2505.3,28.379667]
[1746994813143,0.05,2505.4,2505.3,29.473378]
[1746994813349,0.05,2505.4,2505.3,30.257278]
[1746994813552,0.05,2505.4,2505.3,52.2756778]
[1746994818262,0.05,2505.4,2505.3,12.0836278]
[1746994818584,0.05,2505.4,2505.3,8.7839]
[1746994820105,0.05,2505.4,2505.3,48.97595]
[1746994820656,0.05,2505.4,2505.3,8.7839]
[1746994820856,0.05,2505.4,2505.3,49.56585555]
[1746994821196,0.05,2506.4,2505.7,0.8134]
[1746994821355,4.03986315,2506.4,2505.9,8.0]
[1746994821745,3.99031768,2506.1,2505.9,8.0]
[1746994822685,3.99031768,2506.1,2505.8,0.93634]
[1746994822882,0.7759,2506.2,2505.9,8.0]
[1746994823073,3.99027955,2506.1,2505.9,8.0]
[1746994823971,0.7759,2506.3,2505.9,8.0]
[1746994824300,3.99015128,2506.2,2505.9,8.0]
[1746994825085,4.76589675,2506.3,2505.9,8.0]
[1746994825086,4.76598178,2506.3,2505.9,8.0]
[1746994825257,0.05,2506.4,2506.3,12.765981]
[1746994825465,0.05,2506.4,2506.3,8.0]
[1746994826898,4.03978614,2506.4,2506.3,24.349113]
[1746994827199,4.03978614,2506.4,2506.3,8.0]
[1746994831607,4.03978614,2506.4,2506.3,8.15988535]
[1746994832901,0.05,2506.4,2506.3,8.15988535]
[1746994833730,4.85188614,2506.4,2506.3,8.15988535]
[1746994837490,0.05,2506.4,2506.3,8.15988535]
[1746994837696,0.05,2506.4,2506.3,8.97587389]
[1746994837947,0.05,2506.4,2506.3,34.75440689]
[1746994838091,0.05,2506.4,2506.3,34.77782189]
[1746994838295,0.05,2506.4,2506.3,35.32782189]
[1746994838590,0.8333,2507.2,2506.4,8.0]
[1746994838791,3.98868858,2507.1,2506.6,8.0]
[1746994839220,0.05,2507.4,2506.8,0.8206]
[1746994839420,0.05,2507.4,2506.9,0.03988838]
[1746994839592,0.8752,2507.4,2507.0,0.13815401]
[1746994839812,3.988354,2507.3,2506.6,8.8206]
[1746994840004,3.98897282,2507.0,2506.7,0.13657255]
[1746994840226,3.98897282,2507.0,2506.7,1.30558981]
[1746994840426,3.98873883,2507.1,2506.7,1.30558981]
[1746994840799,4.86342473,2507.4,2506.7,0.13657255]
[1746994841005,3.98914951,2506.8,2506.7,0.13657255]
[1746994844146,4.8142068,2506.9,2506.3,10.733]
[1746994844348,3.98914951,2506.8,2506.7,0.13706671]
[1746994844508,3.9893208,2506.7,2506.3,10.733]
[1746994844704,0.8252,2506.9,2506.4,2.509]
[1746994845017,0.7824,2507.1,2506.6,8.0]
[1746994845226,3.98891214,2507.0,2506.5,0.8327]
[1746994846734,0.7824,2507.1,2506.5,8.8327]
[1746994847414,3.98865498,2507.2,2506.5,8.8327]
[1746994847747,3.98865498,2507.2,2506.6,1.13417]
[1746994848650,3.98865498,2507.2,2506.7,0.8327]
[1746994849209,3.98898653,2507.0,2506.7,0.87258908]
[1746994849515,0.753,2507.2,2506.6,2.733]
[1746994849821,3.98901877,2506.9,2506.6,2.733]
[1746994850225,3.98892093,2507.0,2506.6,2.733]
[1746994850416,3.98892093,2507.0,2506.7,0.13276701]
[1746994850815,4.74160973,2507.2,2507.0,3.98892]
[1746994851013,3.98860973,2507.2,2506.8,0.8254]
[1746994851214,3.98899038,2506.9,2506.7,1.0865767]
[1746994851449,3.98886855,2507.0,2506.7,1.0865767]
[1746994851650,3.98841732,2507.3,2506.9,8.0]
[1746994851852,3.98859788,2507.2,2506.7,9.0865767]